bitfinex/quotes_ETHUSD_20241106
["timestamp","ask_amount","ask_price","bid_price","bid_amount"]
[1730892391135,0.772,2630.9,2630.6,3.80134]
[1730892391857,0.772,2630.9,2630.4,3.80169]
[1730892392161,0.772,2630.9,2630.5,3.80147]
[1730892392353,0.772,2630.9,2630.4,3.80169]
[1730892392555,0.772,2630.9,2630.5,3.80152]
[1730892394275,0.772,2630.9,2630.6,3.80139]
[1730892394634,0.772,2630.9,2630.4,4.10159]
[1730892394860,4.57307,2630.9,2630.4,0.3]
[1730892395135,3.80113,2630.8,2630.4,0.3]
[1730892395759,3.80127,2630.7,2630.4,0.3]
[1730892395976,3.80113,2630.8,2630.4,0.3]
[1730892397393,0.7516,2630.7,2630.4,0.3]
[1730892397560,4.55315,2630.5,2630.4,0.3]
[1730892398648,3.80099,2630.9,2630.4,0.3]
[1730892398849,3.80121,2630.8,2630.4,0.3]
[1730892399056,0.835349,2630.9,2630.4,0.3]
[1730892399270,4.636349,2630.9,2630.4,0.3]
[1730892399500,3.80142,2630.6,2630.4,0.3]
[1730892400558,3.80155,2630.5,2630.4,0.3]
[1730892400897,0.842887,2630.5,2630.4,0.3]
[1730892401106,4.644437,2630.5,2630.4,0.3]
[1730892401397,5.425737,2630.5,2630.4,0.3]
[1730892403651,8.80643,2631.3,2630.4,0.3]
[1730892403652,0.8224,2631.3,2630.4,4.6208847]
[1730892403858,4.62288,2631.3,2630.7,3.80115]
[1730892404175,4.62282,2631.3,2630.7,3.80115]
[1730892404507,0.842317,2631.2,2630.7,3.80115]
[1730892404653,4.642867,2631.2,2630.5,3.80145]
[1730892405149,4.642867,2631.2,2630.6,3.8014]
[1730892405347,0.842317,2631.2,2630.6,3.80128]
[1730892405551,3.842317,2631.2,2630.6,3.80128]
[1730892406057,4.642867,2631.2,2630.6,3.80128]
[1730892406666,3.8224,2631.3,2630.6,4.39690607]
[1730892406667,0.8224,2631.3,2630.6,4.39690607]
[1730892406877,4.6229,2631.3,2630.6,3.80128]
[1730892407189,0.8224,2631.3,2630.7,3.80118]
[1730892407394,4.6228,2631.3,2630.7,3.80118]
[1730892407549,4.6228,2631.3,2630.7,4.181298]
[1730892407754,8.42331,2631.3,2630.7,4.181288]
[1730892408566,3.79971,2631.8,2631.2,8.1213247]
[1730892408567,0.8057,2631.8,2631.2,8.1213247]
[1730892409165,4.60541,2631.8,2631.2,3.80044]
[1730892409562,3.79986,2631.7,2631.1,3.80066]
[1730892409963,7.5998,2631.7,2630.9,11.9226747]
[1730892410163,0.7563,2631.4,2630.9,3.80084]
[1730892411156,0.7563,2631.4,2631.0,3.80074]
[1730892411361,0.7563,2631.4,2631.1,3.80067]
[1730892412076,0.7563,2631.7,2631.2,3.8005]
[1730892413505,0.7563,2631.7,2631.1,3.80061]
[1730892413801,0.7563,2631.7,2631.3,3.80031]
[1730892414166,1.35146073,2631.7,2631.3,3.80031]
[1730892414363,1.35146073,2631.7,2631.1,3.80058]
[1730892414567,1.35146073,2631.7,2630.9,4.3208847]
[1730892414788,1.35146073,2631.7,2631.2,3.80044]
[1730892415009,1.35146073,2631.7,2631.3,3.80035]
[1730892415211,0.7936,2632.0,2631.7,3.79982]
[1730892415369,0.7936,2632.0,2631.6,3.79996]
[1730892415570,0.7936,2632.0,2631.7,0.379996]
[1730892415969,0.7936,2632.0,2631.4,3.80018]
[1730892416169,0.7936,2632.0,2631.3,5.0950847]
[1730892416590,4.59302,2632.0,2631.4,3.80025]
[1730892418818,0.7936,2632.0,2631.4,3.80025]
[1730892419310,3.7996,2631.9,2631.3,4.57459]
[1730892419679,3.7996,2631.9,2631.4,3.80025]
[1730892419920,4.593,2632.0,2631.4,3.80025]
[1730892420384,3.79958,2631.9,2631.4,3.80025]
[1730892420709,3.79961,2631.9,2631.3,0.7742]
[1730892420891,3.79961,2631.9,2631.3,4.57459]
[1730892421518,3.79969,2631.8,2631.3,4.57459]
[1730892422581,0.8051,2631.5,2631.1,0.7742]
[1730892422793,0.8051,2631.5,2631.0,3.80082]
[1730892423082,0.8051,2631.5,2631.0,3.80075]
[1730892423281,3.79984,2631.7,2631.1,3.80062]
[1730892424613,3.49984,2631.7,2631.1,3.80069]
[1730892424806,7.29974,2631.7,2631.1,3.80069]
[1730892425382,3.80026,2631.4,2630.9,3.80088]
[1730892425594,0.82,2631.6,2630.8,0.85021037]
[1730892425796,0.82,2631.6,2630.9,3.80091]
[1730892425993,3.80012,2631.5,2631.0,3.80079]
[1730892426291,3.80011,2631.5,2630.9,3.80091]
[1730892426495,3.80011,2631.5,2630.8,4.57532]
[1730892426794,3.80041,2631.3,2630.8,3.80112]
[1730892427104,3.80011,2631.5,2630.8,3.80112]
[1730892427330,3.8004,2631.3,2630.8,3.80112]
[1730892427803,0.7914,2631.2,2630.6,4.5755]
[1730892428114,3.80069,2631.1,2630.6,8.37683]
[1730892428342,0.7914,2631.2,2630.8,3.80105]
[1730892428520,0.7914,2631.2,2630.9,3.80089]
[1730892428887,0.7914,2631.2,2630.8,3.80105]
[1730892429086,0.7914,2631.2,2630.8,7.60208]
[1730892429419,0.7914,2631.2,2630.8,3.80103]
[1730892429590,0.7914,2631.2,2630.9,3.80097]
[1730892429791,0.7914,2631.2,2630.8,3.80103]
[1730892429997,0.7914,2631.2,2630.9,3.80095]
[1730892430904,4.57788,2631.4,2630.9,3.80095]
[1730892431926,4.57788,2631.4,2630.6,0.7742]
[1730892431927,0.7776,2631.4,2630.6,0.7742]
[1730892432109,0.7776,2631.4,2631.0,3.80079]
[1730892432315,0.7776,2631.4,2631.1,3.80061]
[1730892432825,3.79997,2631.6,2631.1,3.80061]
[1730892433119,3.79997,2631.6,2631.1,4.57481]
[1730892433420,3.80001,2631.6,2631.1,4.57481]
[1730892433930,4.59633,2631.7,2631.2,3.80044]
[1730892435295,4.59633,2631.7,2631.1,4.57481]
[1730892435296,0.7965,2631.7,2631.3,3.80031]
[1730892435635,0.7965,2631.7,2631.4,3.80016]
[1730892436327,0.7965,2631.7,2631.4,7.60034]
[1730892436632,0.7965,2631.7,2631.4,3.80016]
[1730892436837,0.7965,2631.7,2631.2,3.80043]
[1730892437020,0.7965,2631.7,2631.4,3.80012]
[1730892437221,0.7965,2631.7,2631.4,7.60028]
[1730892437531,0.7965,2631.7,2631.4,3.80023]
[1730892437919,4.57799,2632.0,2631.5,3.79999]
[1730892438358,4.50799,2632.0,2631.5,3.79999]
[1730892439598,4.50799,2632.0,2631.4,3.80014]
[1730892439935,8.30747,2632.0,2631.5,3.8001]
[1730892440157,4.50799,2632.0,2631.2,3.80043]
[1730892440434,7.59948,2631.8,2631.3,3.80032]
[1730892440639,3.7997,2631.8,2631.3,3.80032]
[1730892441502,3.79948,2632.0,2631.4,3.80014]
[1730892441714,3.79962,2631.9,2631.4,3.80014]
[1730892442323,3.79948,2632.0,2631.5,0.380014]
[1730892442525,0.7912,2632.1,2631.5,0.380014]
[1730892442832,3.79947,2632.0,2631.5,4.179984]
[1730892443541,7.59898,2632.0,2631.5,4.179984]
[1730892443742,0.7942,2632.3,2631.6,5.17107996]
[1730892443905,4.59316,2632.3,2631.8,3.79959]
[1730892444658,3.79912,2632.2,2631.6,0.85019076]
[1730892444812,3.79912,2632.2,2631.6,3.79992]
[1730892445001,0.7942,2632.3,2631.6,3.79992]
[1730892445202,4.59316,2632.3,2631.7,3.79982]
[1730892445446,3.79917,2632.2,2631.6,3.79989]
[1730892445616,3.79932,2632.1,2631.5,3.80011]
[1730892445799,3.79932,2632.1,2631.4,4.55537]
[1730892446136,5.432436,2632.3,2631.6,3.79983]
[1730892446307,4.3423636,2632.2,2631.6,3.79983]
[1730892446848,3.79925,2632.1,2631.6,3.79983]
[1730892447421,3.79925,2632.1,2631.4,8.35556]
[1730892447623,0.7752,2631.9,2631.5,3.80008]
[1730892447950,0.7752,2631.9,2631.6,3.79995]
[1730892448450,4.56825,2631.6,2631.1,3.80068]
[1730892448620,3.80011,2631.5,2631.1,3.80068]
[1730892449021,3.80011,2631.5,2631.0,3.80083]
[1730892449225,0.7682,2631.6,2631.1,3.80067]
[1730892449415,0.7682,2631.6,2631.1,3.80057]
[1730892449832,3.80011,2631.5,2631.0,3.8008]
[1730892450453,7.60033,2631.5,2631.0,3.8008]
[1730892450664,3.80011,2631.5,2631.0,3.8008]
[1730892450847,3.80011,2631.5,2630.9,0.7527]
[1730892450848,3.80011,2631.5,2630.9,4.55357]
[1730892451440,3.80032,2631.4,2630.9,4.55357]
[1730892452067,4.56824,2631.6,2631.1,3.80069]
[1730892452664,3.80013,2631.5,2631.1,3.80069]
[1730892453050,3.80013,2631.5,2631.0,3.80082]
[1730892454365,3.80013,2631.5,2631.0,7.60157]
[1730892454665,3.80026,2631.4,2631.0,3.80075]
[1730892454868,3.80026,2631.4,2630.9,3.80097]
[1730892455164,0.7517,2631.2,2630.8,3.80104]
[1730892455485,0.7517,2631.2,2630.5,3.80155]
[1730892455486,3.80076,2631.1,2630.5,3.80155]
[1730892455623,3.80079,2631.1,2630.6,3.80139]
[1730892455819,3.80079,2631.1,2630.5,3.80141]
[1730892456029,0.7517,2631.2,2630.8,3.80101]
[1730892457277,4.62781,2631.5,2631.0,3.80077]
[1730892457441,4.57244,2631.6,2631.1,3.80069]
[1730892458239,4.57244,2631.6,2631.0,3.80077]
[1730892458478,3.80011,2631.5,2631.0,3.80077]
[1730892458771,3.80011,2631.5,2631.0,7.60153]
[1730892459144,4.57238,2631.6,2631.1,3.80061]
[1730892459477,3.80012,2631.5,2631.1,3.80061]
[1730892459673,8.37247,2631.6,2631.1,3.80061]
[1730892459976,4.57238,2631.6,2631.1,3.80061]
[1730892460776,3.80021,2631.5,2631.0,3.80083]
[1730892462097,0.7976,2630.9,2630.3,0.7742]
[1730892462301,0.7822,2631.2,2630.9,3.80096]
[1730892462663,0.7822,2631.2,2630.9,7.60187]
[1730892462864,4.5824,2631.5,2631.0,3.80082]
[1730892463265,3.80026,2631.4,2631.0,3.80082]
[1730892463497,4.5824,2631.5,2631.0,3.80082]
[1730892464187,8.38265,2631.5,2631.0,3.80082]
[1730892464392,8.38265,2631.5,2631.0,3.80075]
[1730892464579,3.80028,2631.4,2631.0,3.80075]
[1730892464992,4.5824,2631.5,2631.0,3.80075]
[1730892465198,8.38265,2631.5,2631.0,3.80075]
[1730892465377,8.38263,2631.5,2631.0,3.80075]
[1730892465703,8.38263,2631.5,2630.8,4.56822]
[1730892465704,3.59854464,2631.4,2630.9,3.80096]
[1730892466601,3.80043,2631.3,2630.9,3.80096]
[1730892467167,3.80027,2631.4,2630.9,3.80096]
[1730892467881,3.80045,2631.3,2630.9,3.80096]
[1730892468728,3.80026,2631.4,2630.9,3.80096]
[1730892468900,7.60059,2631.4,2630.9,3.80096]
[1730892469239,3.80026,2631.4,2630.9,3.80096]
[1730892472531,3.80086,2631.0,2630.6,3.80131]
[1730892472850,0.7946,2631.1,2630.6,3.80131]
[1730892473056,4.59532,2631.1,2630.7,3.8012]
[1730892473943,4.59532,2631.1,2630.5,0.82612323]
[1730892474146,4.59532,2631.1,2630.7,3.80126]
[1730892475449,3.80048,2631.3,2630.8,3.80104]
[1730892475650,4.57748,2631.3,2630.8,3.80104]
[1730892475859,8.37799,2631.3,2630.8,3.80104]
[1730892476643,0.777,2631.3,2630.9,3.80088]
[1730892477154,0.777,2631.3,2631.0,3.80082]
[1730892478059,3.80021,2631.5,2631.0,3.80082]
[1730892478260,3.80021,2631.5,2631.0,4.57502]
[1730892478923,3.80021,2631.5,2631.0,4.57496]
[1730892479125,3.80021,2631.5,2631.1,3.80067]
[1730892480246,3.79998,2631.6,2631.2,3.8004]
[1730892482321,3.80053,2631.3,2630.8,3.80111]
[1730892482760,3.80053,2631.3,2630.9,3.80091]
[1730892483322,3.80053,2631.3,2630.8,3.80111]
[1730892483599,3.80053,2631.3,2630.8,7.60214]
[1730892484176,3.80056,2631.2,2630.8,3.80103]
[1730892484377,4.56289,2631.5,2630.9,3.80097]
[1730892484578,5.399163,2631.5,2630.9,3.80097]
[1730892485005,3.80041,2631.3,2630.9,3.80097]
[1730892485167,7.6009,2631.3,2630.8,3.8011]
[1730892485503,0.7621,2632.0,2631.1,3.80069]
[1730892485708,3.79983,2631.7,2631.2,4.57467]
[1730892486507,3.79998,2631.6,2631.1,3.80069]
[1730892486803,4.63038,2631.6,2631.1,3.80069]
[1730892488700,3.80014,2631.5,2631.0,4.57502]
[1730892489512,7.60033,2631.5,2631.0,4.57502]
[1730892489693,7.60039,2631.5,2631.0,3.80082]
[1730892489901,3.80014,2631.5,2630.9,3.80088]
[1730892490088,3.80014,2631.5,2631.0,3.80077]
[1730892490475,3.80014,2631.5,2631.1,3.80064]
[1730892491615,0.8304,2631.6,2631.1,3.80064]
[1730892491817,0.8304,2631.6,2631.2,3.80047]
[1730892492515,0.8304,2631.6,2631.1,3.80065]
[1730892492713,4.63045,2631.6,2631.1,3.80065]
[1730892492888,0.8304,2631.6,2631.1,3.80057]
[1730892493214,4.63044,2631.6,2631.1,3.80057]
[1730892493596,0.7506,2631.8,2631.2,0.83640586]
[1730892493801,0.7506,2631.8,2631.5,3.80005]
[1730892493995,0.7506,2631.8,2631.5,7.60006]
[1730892494202,0.7506,2631.8,2631.5,3.80002]
[1730892495002,0.7506,2631.8,2631.4,3.80025]
[1730892495829,0.7506,2631.8,2631.5,3.80003]
[1730892496630,0.7506,2631.8,2631.4,3.80025]
[1730892497332,4.55036,2631.8,2631.2,4.56085]
[1730892497629,3.79984,2631.7,2631.2,3.80045]
[1730892497801,4.55036,2631.8,2631.1,3.80067]
[1730892498008,3.79994,2631.7,2631.1,3.87667274]
[1730892498654,3.79998,2631.6,2631.1,3.87667274]
[1730892499971,3.79998,2631.6,2631.1,3.80067]
[1730892500166,3.79998,2631.6,2631.1,3.87667553]
[1730892500526,3.79931,2632.1,2631.3,3.8004]
[1730892500765,3.79964,2631.9,2631.4,3.80024]
[1730892500923,0.8033,2631.8,2631.4,3.80024]
[1730892501349,0.8033,2631.8,2631.4,7.60038]
[1730892501568,0.8033,2631.8,2631.4,3.80014]
[1730892501749,0.8033,2631.8,2631.5,3.80009]
[1730892501932,0.8033,2631.8,2631.3,0.0759985]
[1730892502128,4.56473,2632.1,2631.4,3.80025]
[1730892502468,3.79941,2632.0,2631.5,3.80011]
[1730892503165,4.56465,2632.1,2631.6,3.79985]
[1730892503662,8.36399,2632.1,2631.6,3.79985]
[1730892504262,3.7994,2632.0,2631.5,3.80011]
[1730892504433,3.7994,2632.0,2631.5,3.80003]
[1730892504628,3.7994,2632.0,2631.5,7.60006]
[1730892504942,3.7994,2632.0,2631.5,7.60005]
[1730892505143,3.79955,2631.9,2631.3,3.80026]
[1730892505345,3.7994,2632.0,2631.5,3.80005]
[1730892505740,3.7994,2632.0,2631.2,0.7742]
[1730892505741,0.7654,2632.1,2631.2,4.57466]
[1730892505988,3.80023,2631.5,2631.0,4.57491]
[1730892506190,4.59844,2631.6,2631.1,3.80067]
[1730892506398,3.80004,2631.6,2631.1,3.80067]
[1730892506566,0.01,2632.4,2631.4,3.80017]
[1730892506567,4.59793,2631.9,2631.4,3.80017]
[1730892506897,0.7984,2631.9,2631.5,3.80009]
[1730892507564,0.7984,2631.9,2631.4,4.57437]
[1730892507898,0.7874,2631.9,2631.6,3.79987]
[1730892508059,0.7874,2631.9,2631.7,3.79972]
[1730892508404,0.7874,2632.4,2632.0,3.79935]
[1730892509054,0.7874,2632.4,2631.9,4.55714]
[1730892509279,0.7874,2632.4,2632.0,3.79938]
[1730892509473,0.7874,2632.4,2631.9,4.55714]
[1730892509687,0.7874,2632.4,2632.0,3.7993]
[1730892509917,0.7874,2632.4,2631.9,0.7577]
[1730892510057,0.7874,2632.4,2631.9,4.55709]
[1730892510406,0.7874,2632.4,2632.1,3.79911]
[1730892510867,3.7874,2632.4,2631.9,8.35666]
[1730892511071,3.7874,2632.4,2631.9,4.55713]
[1730892511569,3.7874,2632.4,2631.7,3.79975]
[1730892511570,3.79898,2632.3,2631.7,7.59947]
[1730892511766,3.79898,2632.3,2631.7,3.79972]
[1730892511964,3.79898,2632.3,2631.5,4.55768]
[1730892511965,0.7874,2632.0,2631.5,4.55768]
[1730892512195,0.7874,2632.0,2631.6,3.79993]
[1730892512561,0.7874,2632.0,2631.7,3.79981]
[1730892512755,0.7874,2632.0,2631.5,4.55768]
[1730892512962,0.7874,2632.0,2631.5,8.3577]
[1730892513485,0.7874,2632.0,2631.7,3.79973]
[1730892514497,0.7874,2632.0,2631.6,3.87587002]
[1730892515317,0.7874,2632.0,2631.7,3.79972]
[1730892515474,0.7874,2632.0,2631.8,3.79955]
[1730892515855,0.7752,2632.9,2632.4,3.79879]
[1730892516167,3.7752,2632.9,2632.3,0.7742]
[1730892516372,0.01,2632.8,2632.0,0.7742]
[1730892516695,3.0,2632.6,2632.1,3.79913]
[1730892516994,3.0,2632.6,2631.8,3.79957]
[1730892516995,0.8247,2632.4,2631.8,3.79957]
[1730892517158,0.8247,2632.4,2631.7,0.7742]
[1730892517363,4.62411,2632.0,2631.5,3.80008]
[1730892517904,3.79954,2631.9,2631.4,7.60036]
[1730892518402,3.79954,2631.9,2631.3,0.7679]
[1730892518603,3.79984,2631.7,2631.2,3.80045]
[1730892519080,7.59978,2631.7,2631.2,3.80045]
[1730892519285,3.79984,2631.7,2631.2,7.60091]
[1730892519592,3.79984,2631.7,2631.2,3.80045]
[1730892519959,3.79996,2631.6,2631.1,4.57489]
[1730892520163,4.60842,2631.8,2631.2,3.80053]
[1730892520675,3.79982,2631.7,2631.2,3.80053]
[1730892520876,7.59975,2631.7,2631.2,3.80053]
[1730892521218,3.79998,2631.6,2631.1,4.57488]
[1730892521559,4.55658,2631.4,2630.9,0.7729]
[1730892521872,0.835683,2631.3,2630.9,3.80096]
[1730892522071,4.55658,2631.4,2630.9,3.80096]
[1730892522594,0.7563,2631.4,2631.0,3.8008]
[1730892524000,0.7563,2631.4,2631.2,3.80052]
[1730892524162,0.7563,2631.6,2631.2,3.80052]
[1730892524364,4.55636,2631.6,2631.1,3.87662539]
[1730892524589,4.55636,2631.6,2631.1,3.80062]
[1730892524982,4.55636,2631.6,2631.2,0.7729]
[1730892525567,0.7563,2631.6,2631.1,3.87662539]
[1730892525774,0.7563,2631.6,2631.2,3.80043]
[1730892526286,4.55627,2631.6,2631.2,3.80043]
[1730892526874,4.55627,2631.6,2631.1,3.87668539]
[1730892527212,4.55627,2631.6,2631.1,3.87659539]
[1730892528015,4.62398,2631.8,2631.3,3.80031]
[1730892528176,0.8242,2631.8,2631.4,3.80023]
[1730892528375,3.79933,2632.1,2631.5,3.80003]
[1730892528376,3.79939,2632.0,2631.5,3.80003]
[1730892529374,3.79953,2631.9,2631.5,3.80003]
[1730892529669,3.7994,2632.0,2631.5,3.80003]
[1730892530810,0.8242,2632.1,2631.5,3.87602353]
[1730892531007,0.8242,2632.1,2631.6,3.79984]
[1730892531600,0.8242,2632.1,2631.7,3.79981]
[1730892532120,0.8242,2632.1,2631.7,3.79973]
[1730892533509,0.8242,2632.1,2631.7,3.79974]
[1730892534120,7.59812,2632.3,2631.7,7.5995]
[1730892534303,0.8249,2632.2,2631.8,3.79965]
[1730892534482,0.8249,2632.2,2631.7,3.79982]
[1730892534815,3.79925,2632.1,2631.6,7.59985]
[1730892535026,4.62402,2632.2,2631.7,3.79981]
[1730892536126,4.62402,2632.2,2631.6,7.59976]
[1730892536307,3.79931,2632.1,2631.6,3.79987]
[1730892536513,4.62401,2632.2,2631.7,3.87579719]
[1730892538479,3.0,2632.4,2632.0,3.79926]
[1730892538679,3.774,2632.4,2631.9,0.7742]
[1730892538977,7.57284,2632.4,2631.9,3.79947]
[1730892539604,7.57284,2632.4,2631.8,3.7996]
[1730892540118,4.59073,2632.1,2631.5,0.7742]
[1730892540326,3.79948,2632.0,2631.5,0.7742]
[1730892540515,3.79969,2631.8,2631.2,4.57465]
[1730892540720,0.7751,2631.6,2631.1,3.80068]
[1730892541018,4.57508,2631.6,2631.1,3.80068]
[1730892541181,0.7751,2631.6,2631.1,7.60128]
[1730892541388,0.7751,2631.6,2631.1,7.6012]
[1730892541620,0.7751,2631.6,2631.1,3.87660365]
[1730892541808,0.7751,2631.6,2631.1,0.07600365]
[1730892542008,0.7751,2631.6,2631.1,3.87667365]
[1730892542213,0.7751,2631.6,2631.1,7.67728365]
[1730892542527,0.7751,2631.6,2631.2,3.80045]
[1730892543293,0.7751,2631.6,2631.1,3.87668365]
[1730892543500,4.57507,2631.6,2631.1,3.87668365]
[1730892543742,4.57507,2631.6,2631.1,3.80068]
[1730892543895,0.7751,2631.6,2631.2,3.80054]
[1730892544427,3.79989,2631.7,2631.2,3.80054]
[1730892544607,4.59758,2631.8,2631.2,3.80054]
[1730892544922,3.79983,2631.7,2631.2,3.80054]
[1730892545121,1.2453098,2631.8,2631.1,0.07600363]
[1730892545423,3.79985,2631.7,2631.1,3.87668363]
[1730892545601,3.79998,2631.6,2631.1,3.87668363]
[1730892546034,3.79998,2631.6,2631.1,3.80068]
[1730892546197,1.2453098,2631.8,2631.1,3.80068]
[1730892546398,4.59758,2631.8,2631.1,3.80068]
[1730892546622,3.80005,2631.6,2631.1,3.80068]
[1730892547585,3.80012,2631.5,2631.0,4.57498]
[1730892548222,0.8109,2631.4,2631.0,3.80083]
[1730892548525,0.8109,2631.4,2630.9,3.80088]
[1730892548684,0.8109,2631.4,2630.9,7.60177]
[1730892548891,0.8109,2631.4,2630.9,3.80088]
[1730892549099,0.8109,2631.4,2630.9,7.60175]
[1730892549494,0.8109,2631.4,2630.9,3.80087]
[1730892549807,4.61118,2631.4,2630.9,3.80087]
[1730892550315,0.8109,2631.4,2630.9,7.60178]
[1730892550621,0.8109,2631.4,2630.9,3.80087]
[1730892551126,0.8109,2631.4,2631.0,0.07600861]
[1730892551324,0.8109,2631.4,2631.1,3.80069]
[1730892551626,0.8109,2631.4,2631.0,3.87683861]
[1730892552423,0.8109,2631.4,2631.1,3.80065]
[1730892552623,0.7662,2631.6,2631.2,3.80054]
[1730892552785,0.7662,2631.6,2631.3,3.87639501]
[1730892552988,0.7662,2631.6,2631.4,3.80021]
[1730892553196,0.7662,2631.6,2631.2,4.57462]
[1730892553437,0.7662,2631.6,2631.3,3.80037]
[1730892553742,0.7662,2631.8,2631.3,3.8004]
[1730892553893,0.7662,2631.8,2631.3,7.60073]
[1730892554544,0.7662,2631.8,2631.2,0.7742]
[1730892554838,0.7662,2631.8,2631.4,3.80018]
[1730892555230,3.79954,2631.9,2631.4,3.80018]
[1730892555437,3.79954,2631.9,2631.4,3.87617621]
[1730892555938,3.79954,2631.9,2631.4,3.80018]
[1730892556345,0.8214,2631.8,2631.3,3.80039]
[1730892556652,0.8214,2631.8,2631.3,3.8003]
[1730892557027,4.62109,2631.8,2631.3,3.8003]
[1730892557723,4.62109,2631.8,2631.3,7.60064]
[1730892558061,0.8214,2631.8,2631.4,3.80016]
[1730892558227,0.8214,2631.8,2631.0,0.7656]
[1730892558428,4.62108,2631.8,2631.3,3.80033]
[1730892558611,0.8214,2631.8,2631.3,3.80033]
[1730892558810,0.8214,2631.8,2631.3,3.80031]
[1730892559154,0.8214,2631.8,2631.3,7.60064]
[1730892559757,0.8214,2631.8,2631.3,3.80031]
[1730892559949,0.8214,2631.8,2631.3,7.60063]
[1730892560452,0.8214,2631.8,2631.3,3.80031]
[1730892560947,0.8214,2631.8,2631.5,3.80009]
[1730892561855,0.8214,2631.8,2631.5,7.6001]
[1730892562026,0.8214,2631.8,2631.5,3.80001]
[1730892562576,0.8214,2631.8,2631.4,4.65043626]
[1730892562910,0.8214,2631.8,2631.4,4.57444]
[1730892563573,0.8214,2631.8,2631.5,3.80005]
[1730892563876,0.8214,2631.8,2631.4,0.7742]
[1730892564334,0.8214,2631.8,2631.4,4.57443]
[1730892565075,0.8214,2631.8,2631.4,3.80023]
[1730892565675,0.8214,2631.8,2631.5,3.80011]
[1730892566041,0.8216,2632.1,2631.4,3.80024]
[1730892566373,0.8216,2631.9,2631.4,3.80019]
[1730892566577,4.62113,2631.9,2631.4,3.80019]
[1730892567331,4.62113,2631.9,2631.3,3.80037]
[1730892567673,0.8216,2631.9,2631.4,3.80019]
[1730892568297,0.7953,2631.5,2630.8,0.7742]
[1730892568573,3.80006,2631.6,2630.8,0.7742]
[1730892568574,0.7953,2631.3,2630.8,3.80104]
[1730892569277,0.7953,2631.3,2630.6,3.80133]
[1730892569436,3.80056,2631.2,2630.6,3.80133]
[1730892569643,3.80056,2631.2,2630.7,3.80126]
[1730892570092,0.7953,2631.3,2630.8,3.801]
[1730892570259,5.055364,2631.3,2630.3,4.57599]
[1730892570461,0.7953,2631.3,2630.7,3.80118]
[1730892571145,0.7953,2631.3,2630.8,3.80104]
[1730892571772,0.7953,2631.3,2630.7,3.80118]
[1730892571773,0.7953,2631.3,2630.7,4.57534]
[1730892572076,4.59572,2631.3,2630.7,4.57534]
[1730892572485,4.59572,2631.3,2630.7,8.37652]
[1730892572654,5.435326,2631.3,2630.7,8.37652]
[1730892572856,3.80055,2631.2,2630.7,3.80114]
[1730892573549,7.60121,2631.2,2630.5,8.37715]
[1730892573750,3.80055,2631.2,2630.5,4.57566]
[1730892573982,0.7994,2631.0,2630.5,3.80146]
[1730892574293,4.60025,2631.0,2630.5,3.80146]
[1730892574494,0.7994,2631.0,2630.4,0.07602085]
[1730892574713,0.7994,2631.0,2630.7,3.80117]
[1730892575572,4.60221,2631.3,2630.7,8.37654]
[1730892575998,4.60221,2631.3,2630.7,4.57537]
[1730892576174,4.60221,2631.3,2630.8,3.80109]
[1730892576618,0.8018,2631.3,2630.8,3.87710396]
[1730892576780,0.8018,2631.3,2631.0,3.80076]
[1730892577797,4.60505,2631.8,2631.2,3.80044]
[1730892578008,4.60505,2631.8,2631.3,3.80033]
[1730892578279,0.8053,2631.8,2631.1,4.57479]
[1730892578615,0.8053,2631.8,2631.1,3.80059]
[1730892578913,4.61064,2631.6,2630.9,4.5751]
[1730892579081,4.61064,2631.6,2631.0,3.80083]
[1730892579082,8.41068,2631.6,2631.0,3.80083]
[1730892579278,4.61064,2631.6,2631.0,3.80083]
[1730892579806,3.80011,2631.5,2631.0,3.80083]
[1730892580584,8.41073,2631.6,2631.0,3.80074]
[1730892580795,5.451713,2631.6,2631.0,3.80074]
[1730892580999,3.80013,2631.5,2631.0,3.80074]
[1730892581193,0.8234,2631.4,2631.0,3.80074]
[1730892581420,4.62366,2631.4,2630.9,3.80098]
[1730892582238,0.8234,2631.4,2631.0,3.80082]
[1730892582542,0.8218,2632.3,2631.3,0.7742]
[1730892582706,0.8218,2632.3,2631.7,3.7998]
[1730892582907,0.7818,2632.2,2631.7,3.7998]
[1730892583308,0.7818,2632.2,2631.7,7.59948]
[1730892583540,0.7818,2632.2,2631.7,4.559688]
[1730892583731,0.7818,2632.2,2631.7,3.79974]
[1730892583921,0.7818,2632.2,2631.7,7.59948]
[1730892584738,0.7818,2632.2,2631.8,3.79965]
[1730892587211,0.7818,2632.2,2632.0,3.79937]
[1730892587961,0.7818,2632.2,2631.8,7.59912]
[1730892588109,0.7818,2632.2,2631.9,3.79951]
[1730892588458,3.7822,2632.7,2632.1,3.79913]
[1730892588816,4.62391,2632.6,2631.9,3.79945]
[1730892589018,0.8253,2632.4,2631.9,7.5989]
[1730892589755,0.8253,2632.4,2631.7,4.57389]
[1730892589958,0.8253,2632.4,2631.9,3.7994]
[1730892590120,0.8253,2632.4,2632.0,3.79938]
[1730892591841,0.8253,2632.4,2631.9,3.7994]
[1730892592674,0.7958,2632.3,2631.7,3.79972]
[1730892592853,0.7958,2632.2,2631.7,3.79972]
[1730892593019,0.7958,2632.2,2631.4,4.57441]
[1730892593350,0.7958,2632.2,2631.8,3.79955]
[1730892593966,0.7958,2632.2,2631.8,7.59913]
[1730892594169,0.7958,2632.2,2631.8,3.79955]